bitfinex-derivatives/quotes_SOLF0:USTF0_20250523
["timestamp","ask_amount","ask_price","bid_price","bid_amount"]
[1748026060773,0.03573852,179.46,179.44,5.5712]
[1748026061373,5.60643852,179.46,179.44,5.5712]
[1748026061576,0.03573852,179.46,179.45,5.571]
[1748026061974,0.03573852,179.46,179.43,0.03898232]
[1748026062775,0.03573852,179.46,179.45,5.571]
[1748026068474,0.03573852,179.46,179.43,161.03898232]
[1748026068475,0.03573852,179.46,179.44,5.5712]
[1748026068668,0.03573852,179.46,179.43,0.03898232]
[1748026070376,5.571,179.45,179.43,0.03898232]
[1748026071181,5.60653852,179.46,179.43,0.03898232]
[1748026071881,5.60653852,179.46,179.43,5.61038232]
[1748026072578,5.60653852,179.46,179.43,0.03898232]
[1748026072881,5.5711,179.45,179.43,0.03898232]
[1748026073284,0.03573852,179.46,179.43,0.03898232]
[1748026073474,5.571,179.45,179.43,0.03898232]
[1748026073883,5.5713,179.44,179.43,0.03898232]
[1748026074075,0.03573852,179.46,179.43,0.03898232]
[1748026074583,5.5712,179.45,179.43,0.03898232]
[1748026074784,0.03573852,179.46,179.43,0.03898232]
[1748026075080,7.76942748,179.44,179.34,166.19935611]
[1748026075285,116.18,179.43,179.34,5.19935611]
[1748026075584,5.5725,179.41,179.38,5.5732]
[1748026075782,5.5725,179.41,179.34,5.19935611]
[1748026076080,5.5721,179.42,179.37,5.5732]
[1748026076283,0.03679528,179.41,179.38,0.03664535]
[1748026076683,0.03679528,179.41,179.39,5.5727]
[1748026076877,0.03679528,179.41,179.38,0.03664535]
[1748026077280,0.03679528,179.41,179.38,5.60964535]
[1748026077787,5.60929528,179.41,179.38,0.03664535]
[1748026077984,0.03679528,179.41,179.38,0.03664535]
[1748026079101,5.5726,179.4,179.38,0.03664535]
[1748026079297,0.03679528,179.41,179.38,0.03664535]
[1748026080198,5.60899528,179.41,179.38,0.03664535]
[1748026080498,0.03679528,179.41,179.38,0.03664535]
[1748026083187,0.03679528,179.41,179.39,5.5727]
[1748026083390,0.03679528,179.41,179.38,0.03664535]
[1748026083791,0.03679528,179.41,179.4,5.5725]
[1748026084601,116.2,179.47,179.4,161.0]
[1748026084900,597.74,179.51,179.41,116.2]
[1748026085599,0.04227019,179.48,179.44,0.03631653]
[1748026085894,0.04227019,179.48,179.46,5.5704]
[1748026086101,0.04227019,179.48,179.44,0.03631653]
[1748026087498,0.04227019,179.48,179.47,5.5704]
[1748026089799,7.019e-05,179.48,179.47,5.5704]
[1748026094807,7.019e-05,179.48,179.46,227.6704]
[1748026095009,7.019e-05,179.48,179.46,222.1]
[1748026096109,7.019e-05,179.48,179.46,227.6704]
[1748026096305,7.019e-05,179.48,179.44,0.03631653]
[1748026096702,7.019e-05,179.48,179.45,5.5708]
[1748026096903,7.019e-05,179.48,179.44,0.03631653]
[1748026097306,7.019e-05,179.48,179.47,5.5704]
[1748026100112,7.019e-05,179.48,179.46,5.5706]
[1748026100313,7.019e-05,179.48,179.44,161.03631653]
[1748026100715,7.019e-05,179.48,179.47,5.5704]
[1748026101411,6.77673538,179.57,179.47,115.96]
[1748026101912,6.77673538,179.57,179.47,117.9561]
[1748026102315,0.04054573,179.54,179.52,5.5686]
[1748026102907,5.60884573,179.54,179.51,5.5691]
[1748026103210,0.04054573,179.54,179.5,0.03823963]
[1748026103613,0.04054573,179.54,179.52,5.5687]
[1748026104115,0.04054573,179.54,179.5,0.03823963]
[1748026104506,0.04054573,179.54,179.53,5.5685]
[1748026111517,0.04054573,179.54,179.52,5.5686]
[1748026111818,0.04054573,179.54,179.5,0.03823963]
[1748026112722,0.04054573,179.54,179.51,5.5689]
[1748026113125,0.04054573,179.54,179.5,0.03823963]
[1748026113824,0.04054573,179.54,179.52,5.5686]
[1748026114121,0.04054573,179.54,179.5,0.03823963]
[1748026114420,0.04054573,179.54,179.52,5.5685]
[1748026115423,0.04054573,179.54,179.53,5.5685]
[1748026122027,0.04054573,179.54,179.52,5.5687]
[1748026122419,0.04054573,179.54,179.51,115.94]
[1748026122615,5.60894573,179.54,179.5,0.03823963]
[1748026122815,5.60894573,179.54,179.51,5.5691]
[1748026123026,0.04054573,179.54,179.5,0.03823963]
[1748026123227,5.5691,179.51,179.5,0.03823963]
[1748026123530,115.80054573,179.54,179.5,0.03823963]
[1748026123722,5.5691,179.51,179.5,0.03823963]
[1748026125128,5.5702,179.48,179.44,115.76]
[1748026125328,1.9957,179.53,179.44,115.76]
[1748026125729,1.9957,179.53,179.41,7.76942748]
[1748026125925,1.9957,179.53,179.45,5.5709]
[1748026126230,7.76942748,179.5,179.47,0.03525478]
[1748026126533,117.7123,179.49,179.39,115.76]
[1748026126824,5.5712,179.45,179.39,115.76]
[1748026127128,117.7123,179.49,179.41,5.572]
[1748026127331,0.04160338,179.47,179.43,0.04145937]
[1748026129329,5.5707,179.46,179.43,5.61295937]
[1748026129530,0.04160338,179.47,179.43,0.04145937]
[1748026129829,0.04160338,179.47,179.45,5.5709]
[1748026130027,0.04160338,179.47,179.43,0.04145937]
[1748026130530,0.04160338,179.47,179.46,5.5707]
[1748026133437,3.38e-06,179.47,179.46,5.5707]
[1748026133935,3.38e-06,179.47,179.46,166.5707]
[1748026134934,115.78,179.54,179.52,5.5686]
[1748026136439,115.78,179.54,179.53,5.5685]
[1748026137734,0.03591533,179.55,179.54,5.5682]
[1748026138335,0.03591533,179.55,179.51,0.03784308]
[1748026138942,0.03591533,179.55,179.52,5.5686]
[1748026140349,0.03591533,179.55,179.53,5.5684]
[1748026140646,0.03591533,179.55,179.51,0.03784308]
[1748026140847,0.03591533,179.55,179.54,5.5682]
[1748026141145,0.03591533,179.55,179.51,0.03784308]
[1748026141549,0.03591533,179.55,179.53,5.5684]
[1748026141942,0.03591533,179.55,179.51,0.03784308]
[1748026143159,0.03591533,179.55,179.54,5.5682]
[1748026143352,0.03591533,179.55,179.51,0.03784308]
[1748026143655,0.03591533,179.55,179.54,5.5682]
[1748026145252,0.03591533,179.55,179.51,0.03784308]
[1748026145460,0.03591533,179.55,179.52,5.5688]
[1748026146955,5.60401533,179.55,179.51,5.60694308]
[1748026147161,5.60401533,179.55,179.51,0.03784308]
[1748026147350,0.03591533,179.55,179.51,0.03784308]
[1748026147556,5.5684,179.54,179.51,5.60684308]
[1748026147755,5.5684,179.54,179.51,0.03784308]
[1748026148061,5.60391533,179.55,179.52,5.5688]
[1748026148962,5.5684,179.54,179.51,5.60694308]
[1748026149161,0.03591533,179.55,179.51,0.03784308]
[1748026149662,5.5685,179.53,179.51,0.03784308]
[1748026150263,5.5688,179.52,179.51,0.03784308]
[1748026150959,115.79591533,179.55,179.51,0.03784308]
[1748026151159,1.9346,179.54,179.51,0.03784308]
[1748026151350,5.5688,179.52,179.51,0.03784308]
[1748026158467,5.5686,179.53,179.51,0.03784308]
[1748026158667,1.9346,179.54,179.51,0.03784308]
[1748026159064,5.5688,179.52,179.51,0.03784308]
[1748026160962,1.9346,179.54,179.51,0.03784308]
[1748026161170,5.5686,179.53,179.51,0.03784308]
[1748026162464,7.5029,179.54,179.51,5.60684308]
[1748026162659,1.9346,179.54,179.51,0.03784308]
[1748026163072,5.5688,179.52,179.51,0.03784308]
[1748026163261,1.9346,179.54,179.51,0.03784308]
[1748026164262,7.5029,179.54,179.51,5.60674308]
[1748026164673,1.9346,179.54,179.51,5.60674308]
[1748026164869,7.5029,179.54,179.51,0.03784308]
[1748026165062,1.9346,179.54,179.51,0.03784308]
[1748026165370,5.5687,179.53,179.51,0.03784308]
[1748026167174,5.5687,179.53,179.51,5.60684308]
[1748026167372,5.5687,179.53,179.51,0.03784308]
[1748026168369,5.5688,179.52,179.51,0.03784308]
[1748026170272,5.5686,179.53,179.51,0.03784308]
[1748026170970,5.5688,179.52,179.51,0.03784308]
[1748026175163,5.5685,179.53,179.51,0.03784308]
[1748026175976,5.5688,179.52,179.51,0.03784308]
[1748026177574,1.9881,179.53,179.46,5.5706]
[1748026177970,5.5697,179.5,179.47,5.5704]
[1748026178476,5.60536946,179.5,179.47,5.61094303]
[1748026179572,0.03566946,179.5,179.47,0.04054303]
[1748026180377,5.60526946,179.5,179.48,5.57]
[1748026180577,0.03566946,179.5,179.47,0.04054303]
[1748026180971,5.57,179.49,179.47,0.04054303]
[1748026181679,5.57,179.49,179.47,5.61084303]
[1748026181884,5.57,179.49,179.47,0.04054303]
[1748026182380,5.60516946,179.5,179.47,5.61084303]
[1748026182877,5.60516946,179.5,179.47,0.04054303]
[1748026183380,0.03566946,179.5,179.49,5.5697]
[1748026183780,0.03566946,179.5,179.47,0.04054303]
[1748026183982,0.03566946,179.5,179.48,5.5698]
[1748026184673,0.03566946,179.5,179.47,5.61074303]
[1748026186582,5.5698,179.49,179.47,5.61074303]
[1748026186774,0.03566946,179.5,179.48,5.57]
[1748026188082,5.60526946,179.5,179.47,5.61064303]
[1748026189084,5.60526946,179.5,179.48,5.57]
[1748026190386,5.5698,179.49,179.47,5.61074303]
[1748026191886,5.60516946,179.5,179.47,5.61074303]
[1748026192088,0.03566946,179.5,179.47,0.04054303]
[1748026192584,5.60516946,179.5,179.47,5.61064303]
[1748026192788,0.03566946,179.5,179.47,5.61064303]
[1748026192991,0.03566946,179.5,179.47,0.04054303]
[1748026193691,0.03566946,179.5,179.49,5.5697]
[1748026196594,0.03566946,179.5,179.47,5.61084303]
[1748026197095,0.03566946,179.5,179.47,0.04054303]
[1748026197293,0.03566946,179.5,179.49,5.5697]
[1748026198294,5.60516946,179.5,179.48,5.5698]
[1748026201801,0.03566946,179.5,179.49,5.5697]
[1748026202487,5.60526946,179.5,179.48,5.5699]
[1748026204602,0.03566946,179.5,179.48,5.5699]
[1748026206911,0.03566946,179.5,179.49,5.5697]
[1748026207412,0.03566946,179.5,179.47,5.61084303]
[1748026208009,5.5698,179.49,179.47,5.61084303]
[1748026208212,0.03566946,179.5,179.47,5.61084303]
[1748026208714,5.60526946,179.5,179.47,5.61084303]
[1748026208908,5.60526946,179.5,179.48,5.57]
[1748026210114,0.03566946,179.5,179.48,5.57]
[1748026211515,5.60516946,179.5,179.48,5.57]
[1748026211918,0.03566946,179.5,179.47,5.61074303]
[1748026212218,5.60526946,179.5,179.47,5.61074303]
[1748026212516,0.03566946,179.5,179.47,0.04054303]
[1748026212718,0.03566946,179.5,179.49,5.5697]
[1748026215219,0.03566946,179.5,179.48,5.5699]
[1748026216120,5.02496561,179.5,179.47,0.04054303]
[1748026216319,4.99477224,179.48,179.4,5.19120759]
[1748026216522,10.56697224,179.41,179.4,5.19120759]
[1748026217222,4.99477224,179.41,179.4,5.19120759]
[1748026218130,10.56697224,179.41,179.4,5.19120759]
[1748026218422,10.56697224,179.41,179.39,0.0412821]
[1748026219518,115.25852616,179.42,179.39,0.0412821]
[1748026219719,0.03852616,179.42,179.39,0.0412821]
[1748026221331,5.5725,179.41,179.39,0.0412821]
[1748026221626,0.03852616,179.42,179.39,0.0412821]
[1748026222125,5.5722,179.41,179.39,0.0412821]
[1748026223025,115.27852616,179.42,179.39,0.0412821]
[1748026223530,115.27852616,179.42,179.4,5.5722]
[1748026225232,120.85052616,179.42,179.39,5.6140821]
[1748026225934,120.85052616,179.42,179.39,0.0412821]
[1748026226235,5.5722,179.41,179.39,0.0412821]
[1748026226534,115.27852616,179.42,179.39,0.0412821]
[1748026227532,5.5725,179.41,179.39,0.0412821]
[1748026228231,5.5725,179.4,179.39,0.0412821]
[1748026228530,115.27852616,179.42,179.39,0.0412821]
[1748026229141,5.5724,179.41,179.39,0.0412821]
[1748026230343,5.5725,179.4,179.39,0.0412821]
[1748026230633,7.80109249,179.4,179.29,115.26]
[1748026230833,7.80109249,179.4,179.29,276.26]
[1748026231033,5.5736,179.37,179.32,5.5748]
[1748026231234,120.8336,179.37,179.32,5.5748]
[1748026231438,120.8336,179.37,179.29,276.26]
[1748026231634,120.8336,179.37,179.34,5.5744]
[1748026231838,0.03813836,179.35,179.34,5.5744]
[1748026232637,0.03813836,179.35,179.33,5.5746]
[1748026233027,0.03813836,179.35,179.31,0.03980746]
[1748026233226,0.03813836,179.35,179.33,5.5744]
[1748026233430,0.03813836,179.35,179.31,0.03980746]
[1748026234032,5.61243836,179.35,179.31,0.03980746]
[1748026234428,5.61243836,179.35,179.31,5.61490746]
[1748026235239,5.5744,179.34,179.31,5.61490746]
[1748026236338,0.03813836,179.35,179.34,5.5744]
[1748026239235,0.03813836,179.35,179.31,0.03980746]
[1748026239426,115.33813836,179.35,179.31,0.03980746]
[1748026239838,5.575,179.32,179.31,0.03980746]
[1748026244635,115.33813836,179.35,179.31,0.03980746]
[1748026245441,0.03813836,179.35,179.34,5.5744]
[1748026254537,0.03813836,179.35,179.33,5.5746]
[1748026254849,0.03813836,179.35,179.31,0.03980746]
[1748026256246,5.5746,179.34,179.31,0.03980746]
[1748026256550,0.03813836,179.35,179.31,0.03980746]
[1748026256943,0.03813836,179.35,179.32,5.5748]
[1748026257249,0.03813836,179.35,179.31,0.03980746]
[1748026257546,0.03813836,179.35,179.33,5.5745]
[1748026257742,0.03813836,179.35,179.31,0.03980746]
[1748026258245,0.03813836,179.35,179.32,5.575]
[1748026259253,5.61223836,179.35,179.32,5.575]
[1748026260146,5.5744,179.34,179.31,0.03980746]
[1748026260448,5.5744,179.34,179.31,5.61510746]
[1748026261956,5.61223836,179.35,179.32,5.575]
[1748026262356,0.03813836,179.35,179.31,0.03980746]
[1748026263556,0.03813836,179.35,179.34,5.5744]
[1748026264357,0.03813836,179.35,179.33,5.5746]
[1748026265046,0.03813836,179.35,179.34,5.5744]
[1748026265247,0.03813836,179.35,179.31,161.03980746]
[1748026265656,5.61233836,179.35,179.32,5.5748]
[1748026265955,0.03813836,179.35,179.31,161.03980746]
[1748026266147,0.03813836,179.35,179.33,5.5745]
[1748026267454,5.61243836,179.35,179.32,5.575]
[1748026268655,0.03813836,179.35,179.31,161.03980746]
[1748026269153,0.03813836,179.35,179.32,5.575]
[1748026269355,0.03813836,179.35,179.31,161.03980746]
[1748026269648,0.03813836,179.35,179.33,5.5747]
[1748026270058,0.03813836,179.35,179.31,0.03980746]
[1748026270754,0.03813836,179.35,179.34,5.5744]
[1748026273362,0.03813836,179.35,179.32,5.575]
[1748026273659,5.5746,179.34,179.31,266.99980746]
[1748026274155,5.5746,179.34,179.31,272.57490746]
[1748026274655,5.5746,179.34,179.31,266.99980746]
[1748026274967,0.03813836,179.35,179.31,266.99980746]
[1748026274968,5.61233836,179.35,179.32,5.5748]
[1748026275257,0.03813836,179.35,179.31,266.99980746]
[1748026275551,0.03813836,179.35,179.31,268.95730746]
[1748026275753,3.836e-05,179.35,179.34,5.5744]
[1748026276058,121.7391371,179.42,179.33,7.80109249]
[1748026276260,121.7391371,179.42,179.33,168.80109249]
[1748026276558,6.7791371,179.45,179.36,7.80109249]
[1748026276761,6.7791371,179.45,179.37,107.9595]
[1748026277054,0.03546926,179.43,179.39,0.04133506]
[1748026277865,5.60736926,179.43,179.4,5.5725]
[1748026278457,5.5719,179.42,179.4,5.5725]
[1748026278671,5.5719,179.42,179.39,5.61413506]
[1748026278958,0.03546926,179.43,179.39,0.04133506]
[1748026279259,0.03546926,179.43,179.39,5.61413506]
[1748026279865,5.5721,179.42,179.39,5.61413506]
[1748026280962,5.5723,179.41,179.39,0.04133506]
[1748026281660,5.572,179.42,179.39,0.04133506]
[1748026282863,0.03546926,179.43,179.39,0.04133506]
[1748026283964,5.60716926,179.43,179.4,5.5725]
[1748026284854,0.03546926,179.43,179.39,0.04133506]
[1748026285163,114.94,179.42,179.39,0.04133506]
[1748026285659,5.5725,179.4,179.39,0.04133506]
[1748026285859,114.94,179.42,179.39,0.04133506]
[1748026286057,0.03546926,179.43,179.39,0.04133506]
[1748026287158,0.03546926,179.43,179.4,5.5725]
[1748026288266,5.60726926,179.43,179.4,5.5725]
[1748026288563,0.03546926,179.43,179.39,0.04133506]
[1748026289466,5.5719,179.42,179.39,5.61403506]
[1748026290465,0.03546926,179.43,179.39,0.04133506]
[1748026291459,5.5725,179.4,179.39,0.04133506]
[1748026300177,114.94,179.41,179.39,0.04133506]
[1748026300673,120.5123,179.41,179.39,0.04133506]
[1748026301871,114.94,179.41,179.39,5.61403506]
[1748026302261,114.94,179.41,179.39,0.04133506]
[1748026302461,114.94,179.41,179.4,5.5725]
[1748026302665,0.03546926,179.43,179.4,5.5725]
[1748026302874,5.60726926,179.43,179.4,5.5725]
[1748026303260,5.60726926,179.43,179.39,0.04133506]
[1748026303574,5.5719,179.42,179.39,0.04133506]
[1748026304269,5.5719,179.42,179.4,5.5724]
[1748026306076,5.60716926,179.43,179.4,5.5724]
[1748026306266,0.03546926,179.43,179.39,0.04133506]
[1748026306668,5.60726926,179.43,179.4,5.5724]
[1748026307773,0.03546926,179.43,179.41,5.5722]
[1748026308973,5.5725,179.41,179.39,0.04133506]
[1748026309177,114.78,179.4,179.29,105.92]
[1748026309776,114.78,179.4,179.32,5.5748]
[1748026309777,5.5743,179.35,179.32,5.5748]
[1748026309970,114.78,179.4,179.29,105.92]
[1748026310173,0.03812204,179.37,179.33,0.03589425]
[1748026310776,5.5738,179.36,179.33,5.61039425]
[1748026310969,0.03812204,179.37,179.33,0.03589425]
[1748026311370,5.61162204,179.37,179.34,5.5742]
[1748026312982,5.5738,179.36,179.33,5.61059425]
[1748026313672,5.5738,179.36,179.33,0.03589425]
[1748026313873,5.61172204,179.37,179.33,0.03589425]
[1748026314481,5.61172204,179.37,179.33,5.61029425]
[1748026316083,5.5739,179.36,179.33,5.61029425]
[1748026316278,0.03812204,179.37,179.33,0.03589425]
[1748026316682,5.574,179.36,179.33,0.03589425]
[1748026317683,5.574,179.36,179.33,5.61059425]
[1748026318684,5.5744,179.34,179.33,0.03589425]
[1748026319986,0.03812204,179.37,179.33,0.03589425]
[1748026321290,5.5739,179.36,179.33,5.61039425]
[1748026323001,5.5741,179.35,179.33,0.03589425]
[1748026325405,5.5738,179.36,179.33,5.61049425]
[1748026325703,0.03812204,179.37,179.33,0.03589425]
[1748026326298,0.03812204,179.37,179.34,105.96]
[1748026326804,0.03812204,179.37,179.36,5.5738]
[1748026329299,0.03812204,179.37,179.33,0.03589425]
[1748026329603,5.574,179.36,179.33,0.03589425]
[1748026329898,0.03812204,179.37,179.33,0.03589425]
[1748026330402,5.574,179.36,179.33,5.61059425]
[1748026330605,0.03812204,179.37,179.33,0.03589425]
[1748026330902,5.5741,179.35,179.33,0.03589425]
[1748026331105,0.03812204,179.37,179.33,0.03589425]
[1748026332402,5.574,179.36,179.33,0.03589425]
[1748026332603,0.03812204,179.37,179.33,0.03589425]
[1748026333001,5.574,179.36,179.33,5.61059425]
[1748026333304,0.03812204,179.37,179.33,0.03589425]
[1748026333905,5.5738,179.36,179.33,0.03589425]
[1748026334307,0.03812204,179.37,179.33,0.03589425]
[1748026334504,5.5738,179.36,179.33,0.03589425]
[1748026335310,0.03812204,179.37,179.33,0.03589425]
[1748026335807,5.5742,179.35,179.33,0.03589425]
[1748026337007,5.5744,179.34,179.33,0.03589425]
[1748026337696,5.5742,179.35,179.33,0.03589425]
[1748026338310,0.03812204,179.37,179.33,0.03589425]
[1748026338604,5.5744,179.34,179.33,0.03589425]
[1748026341109,0.03812204,179.37,179.33,0.03589425]
[1748026341913,5.574,179.36,179.33,0.03589425]
[1748026343313,5.5742,179.35,179.33,0.03589425]
[1748026345615,5.5744,179.34,179.33,0.03589425]
[1748026348608,114.66,179.35,179.22,5.20286204]
[1748026348815,9.82319249,179.33,179.22,5.20286204]
[1748026349006,1.9454,179.32,179.24,5.5774]
[1748026349206,5.5765,179.28,179.24,5.5774]
[1748026349615,5.61209143,179.28,179.24,5.61664401]
[1748026349917,5.61209143,179.28,179.25,5.5772]
[1748026350618,0.03559143,179.28,179.25,5.5772]
[1748026351717,0.03559143,179.28,179.26,5.5769]
[1748026353316,0.03559143,179.28,179.27,5.5766]
[1748026357316,0.03559143,179.28,179.25,5.5771]
[1748026358121,0.03559143,179.28,179.26,5.5768]
[1748026358311,5.5772,179.25,179.24,0.03924401]
[1748026361027,124.43069249,179.27,179.15,5.6391]
[1748026361225,1.8642,179.26,179.12,12.99762063]
[1748026361421,1.8642,179.26,179.12,5.19652814]
[1748026362123,5.5793,179.19,179.12,5.19652814]
[1748026362325,0.03516392,179.17,179.12,5.19652814]
[1748026363817,0.03516392,179.17,179.16,5.58]
[1748026366912,0.03516392,179.17,179.15,5.5803]
[1748026367117,0.03516392,179.17,179.11,275.7]
[1748026368629,0.03516392,179.17,179.14,5.5804]
[1748026368815,0.03516392,179.17,179.15,5.5803]
[1748026369916,0.03516392,179.17,179.16,5.58]
[1748026370327,0.03516392,179.17,179.11,275.7]
[1748026371023,0.03516392,179.17,179.15,5.5801]
[1748026371333,0.03516392,179.17,179.11,275.7]
[1748026371830,0.03516392,179.17,179.15,5.5801]
[1748026372628,5.61496392,179.17,179.11,275.7]
[1748026372824,0.03516392,179.17,179.11,275.7]
[1748026373130,5.61486392,179.17,179.14,5.5804]
[1748026373332,0.03516392,179.17,179.11,275.7]
[1748026373630,0.03516392,179.17,179.15,5.5801]
[1748026375230,0.03516392,179.17,179.16,5.58]
[1748026375532,0.03516392,179.17,179.11,275.7]
[1748026376731,0.03516392,179.17,179.1,7.80109249]
[1748026376732,15.65645946,179.12,179.0,24.07697692]
[1748026376942,7.82822973,179.01,178.92,1.84112329]
[1748026377128,7.82822973,179.01,178.83,30.39813835]
[1748026377432,7.82822973,178.92,178.81,71.0134773]
[1748026377639,7.82822973,178.82,178.74,21.71295596]
[1748026377936,7.82822973,178.82,178.76,36.90786659]
[1748026377937,7.82822973,178.8,178.76,36.90786659]
[1748026378328,0.03604665,178.82,178.74,21.71295596]
[1748026378528,0.03604665,178.82,178.74,32.89281689]
[1748026379140,7.86427638,178.82,178.74,32.89281689]
[1748026379435,7.82822973,178.78,178.74,21.71295596]
[1748026379630,12.81487052,178.8,178.73,45.03657728]
[1748026379838,0.04227839,178.78,178.73,11.17986093]
[1748026380534,4.60315701,178.77,178.58,12.81487052]
[1748026380837,0.03719625,178.69,178.67,3.8106]
[1748026381140,160.64,178.73,178.56,0.97399871]
[1748026381449,4.60315701,178.77,178.58,13.7885967]
[1748026381744,6.77916076,178.76,178.58,13.7885967]
[1748026382038,4.99578566,178.7,178.58,0.97372618]
[1748026382229,4.99578566,178.7,178.56,176.94]
[1748026382544,0.04179693,178.66,178.62,0.03774091]
[1748026383140,0.04179693,178.66,178.54,3.8106]
[1748026383342,176.94,178.69,178.54,3.8106]
[1748026383838,176.94,178.69,178.59,5.5978]
[1748026384041,0.03686639,178.66,178.59,5.5978]
[1748026384440,4.99578566,178.63,178.54,3.8106]
[1748026384637,0.04215864,178.6,178.54,3.8106]
[1748026384837,4.99578566,178.63,178.54,3.8106]
[1748026385238,4.60315701,178.65,178.59,12.81487052]
[1748026385442,6.77916076,178.69,178.6,189.87487052]
[1748026385641,10.16874115,178.76,178.6,189.87487052]
[1748026385838,0.04063916,178.7,178.66,0.03790471]
[1748026386039,10.16874115,178.76,178.66,0.03790471]
[1748026386747,12.81487052,178.78,178.66,0.03790471]
[1748026386932,12.81487052,178.78,178.57,106.22]
[1748026387344,189.87487052,178.79,178.57,106.22]
[1748026387843,5.5929,178.75,178.68,5.5948]
[1748026388045,5.5929,178.75,178.57,106.22]
[1748026388242,5.5929,178.75,178.57,168.22]
[1748026388446,5.5925,178.77,178.69,5.5946]
[1748026388647,5.5925,178.77,178.57,168.22]
[1748026388843,189.87487052,178.79,178.57,168.22]
[1748026389038,5.5928,178.75,178.68,5.5949]
[1748026389845,0.03930894,178.74,178.7,0.0415203]
[1748026390146,5.63240894,178.74,178.7,0.0415203]
[1748026390647,0.03930894,178.74,178.7,0.0415203]
[1748026391047,177.16,178.73,178.7,0.0415203]
[1748026393552,182.7535,178.73,178.7,0.0415203]
[1748026394753,177.16,178.73,178.7,0.0415203]
[1748026396052,5.5937,178.72,178.7,0.0415203]
[1748026397154,177.16,178.73,178.7,0.0415203]
[1748026397353,5.5941,178.71,178.7,0.0415203]
[1748026397560,177.16,178.73,178.58,2.0049]
[1748026397857,189.98564666,178.73,178.58,2.0049]
[1748026398044,5.5949,178.69,178.63,5.5963]
[1748026398444,5.5951,178.68,178.63,5.5963]
[1748026398741,5.5951,178.68,178.66,0.04276788]
[1748026398962,0.03803716,178.7,178.66,0.04276788]
[1748026399256,5.5949,178.69,178.66,0.04276788]
[1748026399863,5.5951,178.68,178.66,0.04276788]
[1748026400557,5.5953,178.68,178.66,0.04276788]
[1748026400750,0.03803716,178.7,178.66,0.04276788]
[1748026401151,5.5949,178.69,178.66,0.04276788]
[1748026401457,5.0117382,178.69,178.66,0.04276788]
[1748026401662,5.595,178.68,178.66,0.04276788]
[1748026401960,5.0117382,178.69,178.66,0.04276788]
[1748026402452,10.6064382,178.69,178.66,0.04276788]
[1748026402657,5.0117382,178.68,178.66,0.04276788]
[1748026403658,0.03803716,178.7,178.67,5.5953]
[1748026403858,0.03803716,178.7,178.66,0.04276788]
[1748026404256,5.63243716,178.7,178.66,0.04276788]
[1748026405258,0.03803716,178.7,178.66,0.04276788]
[1748026407059,4.93936668,178.69,178.66,0.04276788]
[1748026407447,5.5953,178.67,178.66,0.04276788]
[1748026408447,10.53466668,178.67,178.66,0.04276788]
[1748026408858,4.93936668,178.67,178.58,2.0049]
[1748026409055,165.86,178.66,178.58,2.0049]
[1748026409655,4.93936668,178.65,178.58,2.0049]
[1748026409956,0.03917327,178.63,178.58,2.0049]
[1748026410154,0.03917327,178.63,178.53,42.04545455]
[1748026410362,7.87634807,178.62,178.53,42.04545455]
[1748026410552,0.03530657,178.59,178.53,42.04545455]
[1748026410758,0.03530657,178.59,178.54,3.7951]
[1748026411060,4.93936668,178.65,178.55,7.87634807]
[1748026411259,4.93936668,178.61,178.55,7.87634807]
[1748026411459,165.88,178.66,178.56,1.825]
[1748026412160,0.04116281,178.63,178.59,0.03828431]
[1748026412559,0.04116281,178.63,178.61,5.597]
[1748026413365,0.04116281,178.63,178.6,5.5974]
[1748026414363,0.04116281,178.63,178.61,5.5971]
[1748026414869,0.04116281,178.63,178.6,5.5974]
[1748026415165,0.04116281,178.63,178.59,0.03828431]
[1748026415660,0.04116281,178.63,178.62,5.5969]
[1748026416065,0.04116281,178.63,178.61,5.5972]
[1748026416861,0.04116281,178.63,178.62,5.5969]
[1748026417167,0.04116281,178.63,178.59,0.03828431]
[1748026417461,0.04116281,178.63,178.61,5.597]
[1748026417664,0.04116281,178.63,178.59,0.03828431]
[1748026418368,5.63796281,178.63,178.6,5.5973]
[1748026418966,0.04116281,178.63,178.59,0.03828431]
[1748026420561,0.04116281,178.63,178.62,5.5969]
[1748026420965,160.18,178.66,178.64,5.5961]
[1748026421672,160.18,178.66,178.65,5.5959]
[1748026422064,0.04046095,178.67,178.64,0.03621308]
[1748026422264,0.04046095,178.67,178.66,5.5956]
[1748026422866,0.04046095,178.67,178.58,7.87634807]
[1748026423565,10.15398083,178.67,178.66,5.5956]